[Event "Titled Tuesday Blitz November 15 Late 2022"]
[White "Grapsa, Georgia"]
[Black "Beerdsen, Thomas"]
[WhiteFideId "4206436"]
[BlackFideId "1030108"]
[WhiteElo "1877"]
[BlackElo "2567"]
[Result "0-1"]
[Round "01"]
[TimeControl "180+1"]
[Date "2022.11.16"]
[WhiteClock "0:01:29"]
[BlackClock "0:02:32"]

1. e4 {[%clk 0:02:56]}  e5 {[%clk 0:02:57]} 2. Nf3 {[%clk 0:02:51]}  Nc6 {[%clk 0:02:56]} 3. Bb5 {[%clk 0:02:48]}  f5 {[%clk 0:02:56]} 4. d3 {[%clk 0:02:48]}  fxe4 {[%clk 0:02:57]} 5. dxe4 {[%clk 0:02:48]}  Nf6 {[%clk 0:02:57]} 6. Bg5 {[%clk 0:02:46]}  d6 {[%clk 0:02:56]} 7. Bxc6+ {[%clk 0:02:43]}  bxc6 {[%clk 0:02:56]} 8. Nbd2 {[%clk 0:02:43]}  Be7 {[%clk 0:02:54]} 9. b3 {[%clk 0:02:43]}  O-O {[%clk 0:02:53]} 10. c4 {[%clk 0:02:42]}  Qe8 {[%clk 0:02:53]} 11. O-O {[%clk 0:02:40]}  Qg6 {[%clk 0:02:52]} 12. Kh1 {[%clk 0:02:36]}  Bg4 {[%clk 0:02:49]} 13. Bxf6 {[%clk 0:01:51]}  Rxf6 {[%clk 0:02:50]} 14. Nxe5 {[%clk 0:01:45]}  dxe5 {[%clk 0:02:48]} 15. f3 {[%clk 0:01:44]}  Be6 {[%clk 0:02:47]} 16. Qe2 {[%clk 0:01:38]}  Bc5 {[%clk 0:02:41]} 17. Rfd1 {[%clk 0:01:36]}  Raf8 {[%clk 0:02:37]} 18. Nf1 {[%clk 0:01:35]}  Qg5 {[%clk 0:02:33]} 19. Re1 {[%clk 0:01:29]}  Rxf3 {[%clk 0:02:32]} 0-1


[Site "https://www.chess.com"]

[Event "Titled Tuesday Blitz November 15 Late 2022"]
[White "Grot, Blazej"]
[Black "Djokic, Mihailo"]
[WhiteFideId "21835845"]
[BlackFideId "976440"]
[WhiteElo "1822"]
[BlackElo "2315"]
[Result "1-0"]
[Round "01"]
[TimeControl "180+1"]
[Date "2022.11.16"]
[WhiteClock "0:01:36"]
[BlackClock "0:00:52"]

1. e4 {[%clk 0:02:56]}  c5 {[%clk 0:02:59]} 2. Nc3 {[%clk 0:02:55]}  Nc6 {[%clk 0:02:57]} 3. Bb5 {[%clk 0:02:55]}  Nd4 {[%clk 0:02:57]} 4. Nf3 {[%clk 0:02:55]}  a6 {[%clk 0:02:57]} 5. Bc4 {[%clk 0:02:55]}  e6 {[%clk 0:02:53]} 6. O-O {[%clk 0:02:52]}  b5 {[%clk 0:02:50]} 7. Be2 {[%clk 0:02:40]}  Bb7 {[%clk 0:02:50]} 8. d3 {[%clk 0:02:36]}  Nf6 {[%clk 0:01:47]} 9. Bg5 {[%clk 0:02:33]}  Be7 {[%clk 0:01:38]} 10. Nxd4 {[%clk 0:02:32]}  cxd4 {[%clk 0:01:38]} 11. Nb1 {[%clk 0:02:33]}  h6 {[%clk 0:01:31]} 12. Bh4 {[%clk 0:02:33]}  d5 {[%clk 0:01:22]} 13. e5 {[%clk 0:02:23]}  Nd7 {[%clk 0:01:16]} 14. Bxe7 {[%clk 0:02:24]}  Qxe7 {[%clk 0:01:17]} 15. f4 {[%clk 0:02:20]}  Rc8 {[%clk 0:01:16]} 16. Nd2 {[%clk 0:02:19]}  O-O {[%clk 0:01:04]} 17. Nf3 {[%clk 0:02:17]}  f6 {[%clk 0:01:04]} 18. Qd2 {[%clk 0:01:39]}  fxe5 {[%clk 0:00:58]} 19. fxe5 {[%clk 0:01:39]}  Rf5 {[%clk 0:00:56]} 20. Rae1 {[%clk 0:01:38]}  Qc5 {[%clk 0:00:52]} 21. Bd1 {[%clk 0:01:36]} 1-0


[Site "https://www.chess.com"]

[Event "Titled Tuesday Blitz November 15 Late 2022"]
[White "Gurevich, Dmitry"]
[Black "Yoo, Christopher Woojin"]
[WhiteFideId "2000407"]
[BlackFideId "30909694"]
[WhiteElo "2506"]
[BlackElo "2463"]
[Result "0-1"]
[Round "01"]
[TimeControl "180+1"]
[Date "2022.11.15"]
[WhiteClock "0:00:46"]
[BlackClock "0:00:26"]

1. d4 {[%clk 0:02:58]}  Nf6 {[%clk 0:02:58]} 2. c4 {[%clk 0:02:58]}  g6 {[%clk 0:02:58]} 3. Nc3 {[%clk 0:02:57]}  Bg7 {[%clk 0:02:58]} 4. e4 {[%clk 0:02:57]}  d6 {[%clk 0:02:59]} 5. Nf3 {[%clk 0:02:57]}  O-O {[%clk 0:02:59]} 6. Be2 {[%clk 0:02:58]}  e5 {[%clk 0:02:59]} 7. O-O {[%clk 0:02:57]}  h6 {[%clk 0:02:59]} 8. d5 {[%clk 0:02:52]}  a5 {[%clk 0:02:39]} 9. Ne1 {[%clk 0:02:49]}  Na6 {[%clk 0:02:38]} 10. Be3 {[%clk 0:02:48]}  Nc5 {[%clk 0:02:36]} 11. Qc2 {[%clk 0:02:47]}  Ng4 {[%clk 0:02:23]} 12. Bxg4 {[%clk 0:02:45]}  Bxg4 {[%clk 0:02:23]} 13. a3 {[%clk 0:02:41]}  Bd7 {[%clk 0:02:21]} 14. b3 {[%clk 0:02:33]}  f5 {[%clk 0:02:19]} 15. f3 {[%clk 0:02:30]}  f4 {[%clk 0:02:04]} 16. Bf2 {[%clk 0:02:27]}  g5 {[%clk 0:02:04]} 17. Nd3 {[%clk 0:02:19]}  Nxd3 {[%clk 0:01:59]} 18. Qxd3 {[%clk 0:02:19]}  h5 {[%clk 0:01:57]} 19. c5 {[%clk 0:02:11]}  g4 {[%clk 0:01:56]} 20. cxd6 {[%clk 0:02:11]}  cxd6 {[%clk 0:01:56]} 21. Kh1 {[%clk 0:02:05]}  Qg5 {[%clk 0:01:45]} 22. Nb5 {[%clk 0:01:56]}  g3 {[%clk 0:01:35]} 23. Bg1 {[%clk 0:01:47]}  h4 {[%clk 0:01:35]} 24. Nc7 {[%clk 0:01:42]}  h3 {[%clk 0:01:20]} 25. Qe2 {[%clk 0:01:36]}  Rf6 {[%clk 0:01:04]} 26. Ne6 {[%clk 0:01:32]}  Rxe6 {[%clk 0:00:36]} 27. dxe6 {[%clk 0:01:30]}  Bxe6 {[%clk 0:00:37]} 28. Ra2 {[%clk 0:01:18]}  Qh5 {[%clk 0:00:34]} 29. Rc1 {[%clk 0:01:10]}  hxg2+ {[%clk 0:00:32]} 30. Qxg2 {[%clk 0:01:02]}  Bh3 {[%clk 0:00:32]} 31. Qe2 {[%clk 0:00:57]}  g2+ {[%clk 0:00:31]} 32. Qxg2 {[%clk 0:00:57]}  Bxg2+ {[%clk 0:00:30]} 33. Rxg2 {[%clk 0:00:57]}  Kh8 {[%clk 0:00:28]} 34. Rc7 {[%clk 0:00:54]}  Rg8 {[%clk 0:00:28]} 35. Bf2 {[%clk 0:00:46]}  Qxf3 {[%clk 0:00:26]} 0-1


[Site "https://www.chess.com"]

[Event "Titled Tuesday Blitz November 15 Late 2022"]
[White "Guz, Ari"]
[Black "Gasparyan, David"]
[WhiteFideId "2825759"]
[BlackFideId "13311980"]
[WhiteElo "2205"]
[BlackElo "2277"]
[Result "1-0"]
[Round "01"]
[TimeControl "180+1"]
[Date "2022.11.16"]
[WhiteClock "0:00:18"]
[BlackClock "0:00:19"]

1. b3 {[%clk 0:02:55]}  Nf6 {[%clk 0:02:51]} 2. Bb2 {[%clk 0:02:48]}  Nc6 {[%clk 0:02:44]} 3. Nf3 {[%clk 0:02:47]}  g6 {[%clk 0:02:37]} 4. d4 {[%clk 0:02:46]}  d5 {[%clk 0:02:36]} 5. Nbd2 {[%clk 0:02:45]}  Bg7 {[%clk 0:02:37]} 6. e3 {[%clk 0:02:45]}  O-O {[%clk 0:02:37]} 7. Bd3 {[%clk 0:02:42]}  Nb4 {[%clk 0:02:36]} 8. Be2 {[%clk 0:02:41]}  Bf5 {[%clk 0:02:36]} 9. O-O {[%clk 0:02:30]}  Nxc2 {[%clk 0:02:34]} 10. Rc1 {[%clk 0:02:31]}  Nb4 {[%clk 0:02:33]} 11. a3 {[%clk 0:02:31]}  Nd3 {[%clk 0:02:33]} 12. Bxd3 {[%clk 0:02:31]}  Bxd3 {[%clk 0:02:33]} 13. Re1 {[%clk 0:02:32]}  c6 {[%clk 0:02:33]} 14. Ne5 {[%clk 0:02:31]}  Bf5 {[%clk 0:02:33]} 15. b4 {[%clk 0:02:28]}  Nd7 {[%clk 0:02:32]} 16. Nxd7 {[%clk 0:02:27]}  Qxd7 {[%clk 0:02:33]} 17. Nb3 {[%clk 0:02:27]}  Qd6 {[%clk 0:02:26]} 18. Nc5 {[%clk 0:02:22]}  b6 {[%clk 0:02:25]} 19. Nb3 {[%clk 0:02:22]}  Rac8 {[%clk 0:02:24]} 20. Qd2 {[%clk 0:02:22]}  Rfe8 {[%clk 0:02:19]} 21. h3 {[%clk 0:02:16]}  e5 {[%clk 0:02:16]} 22. dxe5 {[%clk 0:02:16]}  Bxe5 {[%clk 0:02:17]} 23. Bxe5 {[%clk 0:02:15]}  Qxe5 {[%clk 0:02:17]} 24. Rc3 {[%clk 0:02:15]}  Bd7 {[%clk 0:02:07]} 25. Rec1 {[%clk 0:02:13]}  Qf6 {[%clk 0:02:06]} 26. Nd4 {[%clk 0:02:09]}  Re4 {[%clk 0:02:05]} 27. Qc2 {[%clk 0:02:08]}  Qg5 {[%clk 0:02:00]} 28. Kf1 {[%clk 0:02:01]}  Qf6 {[%clk 0:01:48]} 29. Nxc6 {[%clk 0:01:51]}  Kg7 {[%clk 0:01:45]} 30. Nxa7 {[%clk 0:01:40]}  Rxc3 {[%clk 0:01:43]} 31. Qxc3 {[%clk 0:01:40]}  d4 {[%clk 0:01:43]} 32. exd4 {[%clk 0:01:30]}  Rxd4 {[%clk 0:01:43]} 33. Re1 {[%clk 0:01:13]}  Bf5 {[%clk 0:01:40]} 34. Nc6 {[%clk 0:01:00]}  Bd3+ {[%clk 0:01:30]} 35. Kg1 {[%clk 0:01:00]}  Rd6 {[%clk 0:01:29]} 36. Qxf6+ {[%clk 0:00:58]}  Kxf6 {[%clk 0:01:30]} 37. Ne5 {[%clk 0:00:57]}  Bb5 {[%clk 0:01:30]} 38. Ng4+ {[%clk 0:00:53]}  Kg7 {[%clk 0:01:30]} 39. Re3 {[%clk 0:00:48]}  Rd1+ {[%clk 0:01:25]} 40. Kh2 {[%clk 0:00:49]}  Rd2 {[%clk 0:01:25]} 41. Rf3 {[%clk 0:00:36]}  Bc6 {[%clk 0:01:18]} 42. Rc3 {[%clk 0:00:36]}  Bd5 {[%clk 0:01:13]} 43. Ne3 {[%clk 0:00:33]}  Be6 {[%clk 0:01:11]} 44. Kg1 {[%clk 0:00:31]}  Ra2 {[%clk 0:01:05]} 45. g4 {[%clk 0:00:29]}  h5 {[%clk 0:01:01]} 46. gxh5 {[%clk 0:00:29]}  gxh5 {[%clk 0:01:01]} 47. h4 {[%clk 0:00:28]}  Kf6 {[%clk 0:00:55]} 48. Kg2 {[%clk 0:00:29]}  Ke5 {[%clk 0:00:53]} 49. Kf3 {[%clk 0:00:19]}  Kd4 {[%clk 0:00:53]} 50. Rc6 {[%clk 0:00:20]}  b5 {[%clk 0:00:49]} 51. Rc5 {[%clk 0:00:19]}  Rxa3 {[%clk 0:00:47]} 52. Rxb5 {[%clk 0:00:19]}  Bg4+ {[%clk 0:00:42]} 53. Kf4 {[%clk 0:00:18]}  Be2 {[%clk 0:00:39]} 54. Nc2+ {[%clk 0:00:18]}  Kc3 {[%clk 0:00:28]} 55. Nxa3 {[%clk 0:00:18]}  Kb3 {[%clk 0:00:24]} 56. Ra5 {[%clk 0:00:17]}  Kxb4 {[%clk 0:00:24]} 57. Ra7 {[%clk 0:00:18]}  f6 {[%clk 0:00:21]} 58. Nc2+ {[%clk 0:00:18]}  Kc3 {[%clk 0:00:22]} 59. Ne3 {[%clk 0:00:18]}  Bd3 {[%clk 0:00:22]} 60. Ra3+ {[%clk 0:00:18]}  Kd2 {[%clk 0:00:22]} 61. Nf5 {[%clk 0:00:18]}  Be2 {[%clk 0:00:21]} 62. Ng3 {[%clk 0:00:18]}  Bg4 {[%clk 0:00:21]} 63. f3 {[%clk 0:00:18]}  Be6 {[%clk 0:00:21]} 64. Nxh5 {[%clk 0:00:19]}  f5 {[%clk 0:00:21]} 65. Ng7 {[%clk 0:00:19]}  Bd5 {[%clk 0:00:20]} 66. h5 {[%clk 0:00:19]}  Ke2 {[%clk 0:00:21]} 67. h6 {[%clk 0:00:20]}  Bg8 {[%clk 0:00:22]} 68. Kg5 {[%clk 0:00:18]}  Bh7 {[%clk 0:00:21]} 69. f4 {[%clk 0:00:18]}  Kd2 {[%clk 0:00:20]} 70. Ra7 {[%clk 0:00:19]}  Kd3 {[%clk 0:00:19]} 71. Ra8 {[%clk 0:00:19]}  Ke4 {[%clk 0:00:19]} 72. Rh8 {[%clk 0:00:20]}  Kd5 {[%clk 0:00:17]} 73. Rxh7 {[%clk 0:00:20]}  Kd6 {[%clk 0:00:18]} 74. Rh8 {[%clk 0:00:20]}  Ke7 {[%clk 0:00:19]} 75. Kg6 {[%clk 0:00:18]}  Kd6 {[%clk 0:00:18]} 76. Re8 {[%clk 0:00:19]}  Kd7 {[%clk 0:00:19]} 77. h7 {[%clk 0:00:18]} 1-0


[Site "https://www.chess.com"]

[Event "Titled Tuesday Blitz November 15 Late 2022"]
[White "Hakobyan, Aram"]
[Black "Zhang, Derek"]
[WhiteFideId "13306677"]
[BlackFideId "2087871"]
[WhiteElo "2563"]
[BlackElo "2087"]
[Result "1-0"]
[Round "01"]
[TimeControl "180+1"]
[Date "2022.11.15"]
[WhiteClock "0:00:43"]
[BlackClock "0:00:01"]

1. c4 {[%clk 0:03:00]}  d6 {[%clk 0:02:58]} 2. Nc3 {[%clk 0:02:55]}  e5 {[%clk 0:02:58]} 3. g3 {[%clk 0:02:55]}  f5 {[%clk 0:02:58]} 4. Bg2 {[%clk 0:02:56]}  Nf6 {[%clk 0:02:59]} 5. Nf3 {[%clk 0:02:53]}  g6 {[%clk 0:02:58]} 6. O-O {[%clk 0:02:52]}  Bg7 {[%clk 0:02:59]} 7. d3 {[%clk 0:02:51]}  O-O {[%clk 0:02:59]} 8. b4 {[%clk 0:02:51]}  Kh8 {[%clk 0:02:57]} 9. b5 {[%clk 0:02:48]}  Nbd7 {[%clk 0:02:56]} 10. a4 {[%clk 0:02:46]}  Nc5 {[%clk 0:02:53]} 11. Rb1 {[%clk 0:02:37]}  Qe8 {[%clk 0:02:47]} 12. a5 {[%clk 0:02:35]}  Rb8 {[%clk 0:02:47]} 13. Ba3 {[%clk 0:02:27]}  Ne6 {[%clk 0:02:45]} 14. Nd2 {[%clk 0:02:15]}  f4 {[%clk 0:02:30]} 15. Nde4 {[%clk 0:02:07]}  Nxe4 {[%clk 0:02:26]} 16. Nxe4 {[%clk 0:02:07]}  Qe7 {[%clk 0:02:19]} 17. Nc3 {[%clk 0:01:52]}  Nd4 {[%clk 0:02:15]} 18. e3 {[%clk 0:01:36]}  Nf5 {[%clk 0:02:07]} 19. Nd5 {[%clk 0:01:35]}  Qd8 {[%clk 0:01:57]} 20. exf4 {[%clk 0:01:27]}  exf4 {[%clk 0:01:56]} 21. Nxf4 {[%clk 0:01:27]}  Nd4 {[%clk 0:01:50]} 22. Bb2 {[%clk 0:01:24]}  Bf5 {[%clk 0:01:48]} 23. Ne2 {[%clk 0:01:16]}  c5 {[%clk 0:01:29]} 24. bxc6 {[%clk 0:01:12]}  Nxc6 {[%clk 0:01:28]} 25. Bxg7+ {[%clk 0:01:12]}  Kxg7 {[%clk 0:01:29]} 26. a6 {[%clk 0:01:09]}  Ne5 {[%clk 0:01:24]} 27. Rxb7+ {[%clk 0:01:09]}  Rxb7 {[%clk 0:01:23]} 28. axb7 {[%clk 0:01:10]}  Bxd3 {[%clk 0:01:22]} 29. Nf4 {[%clk 0:00:59]}  Bxc4 {[%clk 0:01:19]} 30. Qd4 {[%clk 0:00:57]}  Qb6 {[%clk 0:00:51]} 31. Qxb6 {[%clk 0:00:56]}  axb6 {[%clk 0:00:51]} 32. Ra1 {[%clk 0:00:57]}  Nd7 {[%clk 0:00:51]} 33. Ra8 {[%clk 0:00:54]}  b5 {[%clk 0:00:41]} 34. Bh3 {[%clk 0:00:45]}  Nb8 {[%clk 0:00:25]} 35. Bc8 {[%clk 0:00:45]}  Nc6 {[%clk 0:00:23]} 36. Bd7 {[%clk 0:00:44]}  Nb8 {[%clk 0:00:22]} 37. Bxb5 {[%clk 0:00:43]}  Bg8 {[%clk 0:00:02]} 38. Nd3 {[%clk 0:00:42]}  Kf6 {[%clk 0:00:01]} 39. Nb4 {[%clk 0:00:43]} 1-0


[Site "https://www.chess.com"]

[Event "Titled Tuesday Blitz November 15 Late 2022"]
[White "Halvax, Georg"]
[Black "Broca Jimenez, Fernando"]
[WhiteFideId "1619543"]
[BlackFideId "5104742"]
[WhiteElo "2482"]
[BlackElo "2062"]
[Result "1-0"]
[Round "01"]
[TimeControl "180+1"]
[Date "2022.11.16"]
[WhiteClock "0:01:30"]
[BlackClock "0:01:10"]

1. e4 {[%clk 0:02:57]}  c5 {[%clk 0:02:57]} 2. Nf3 {[%clk 0:02:58]}  d6 {[%clk 0:02:57]} 3. d4 {[%clk 0:02:58]}  cxd4 {[%clk 0:02:58]} 4. Nxd4 {[%clk 0:02:59]}  Nf6 {[%clk 0:02:58]} 5. Nc3 {[%clk 0:02:59]}  g6 {[%clk 0:02:59]} 6. Be3 {[%clk 0:02:59]}  Bg7 {[%clk 0:03:00]} 7. f3 {[%clk 0:02:59]}  O-O {[%clk 0:03:00]} 8. Qd2 {[%clk 0:03:00]}  Nc6 {[%clk 0:03:01]} 9. Bc4 {[%clk 0:03:00]}  Bd7 {[%clk 0:03:01]} 10. Bb3 {[%clk 0:03:00]}  Rc8 {[%clk 0:03:01]} 11. O-O-O {[%clk 0:03:00]}  Ne5 {[%clk 0:03:02]} 12. Kb1 {[%clk 0:03:01]}  Nc4 {[%clk 0:03:01]} 13. Bxc4 {[%clk 0:03:01]}  Rxc4 {[%clk 0:03:02]} 14. g4 {[%clk 0:03:02]}  b5 {[%clk 0:03:02]} 15. b3 {[%clk 0:03:01]}  Rc8 {[%clk 0:02:52]} 16. Ndxb5 {[%clk 0:03:00]}  Bxb5 {[%clk 0:02:53]} 17. Nxb5 {[%clk 0:02:59]}  a6 {[%clk 0:02:51]} 18. Nd4 {[%clk 0:02:56]}  Qd7 {[%clk 0:02:45]} 19. Bh6 {[%clk 0:02:55]}  Rc5 {[%clk 0:02:40]} 20. Bxg7 {[%clk 0:02:54]}  Kxg7 {[%clk 0:02:41]} 21. h4 {[%clk 0:02:54]}  h6 {[%clk 0:02:40]} 22. h5 {[%clk 0:02:53]}  g5 {[%clk 0:02:40]} 23. Nf5+ {[%clk 0:02:53]}  Kh7 {[%clk 0:02:39]} 24. Qd4 {[%clk 0:02:48]}  Rfc8 {[%clk 0:02:35]} 25. c4 {[%clk 0:02:47]}  a5 {[%clk 0:02:34]} 26. Rhe1 {[%clk 0:02:34]}  Qe6 {[%clk 0:02:30]} 27. Qd3 {[%clk 0:02:28]}  Qe5 {[%clk 0:02:24]} 28. Qd4 {[%clk 0:02:25]}  Qe6 {[%clk 0:02:20]} 29. Qb2 {[%clk 0:02:23]}  a4 {[%clk 0:02:18]} 30. Nd4 {[%clk 0:02:18]}  Qe5 {[%clk 0:02:13]} 31. Nb5 {[%clk 0:02:17]}  axb3 {[%clk 0:01:52]} 32. axb3 {[%clk 0:02:13]}  Qf4 {[%clk 0:01:50]} 33. Rd3 {[%clk 0:02:06]}  Ra8 {[%clk 0:01:42]} 34. Rde3 {[%clk 0:02:03]}  Rc6 {[%clk 0:01:40]} 35. e5 {[%clk 0:01:56]}  dxe5 {[%clk 0:01:31]} 36. Qxe5 {[%clk 0:01:57]}  Qxe5 {[%clk 0:01:28]} 37. Rxe5 {[%clk 0:01:58]}  e6 {[%clk 0:01:28]} 38. Kb2 {[%clk 0:01:56]}  Rca6 {[%clk 0:01:28]} 39. Kc3 {[%clk 0:01:56]}  Rc8 {[%clk 0:01:25]} 40. Kb4 {[%clk 0:01:56]}  Nd7 {[%clk 0:01:24]} 41. R5e3 {[%clk 0:01:51]}  Nc5 {[%clk 0:01:22]} 42. Rd1 {[%clk 0:01:51]}  Rb6 {[%clk 0:01:21]} 43. Rd6 {[%clk 0:01:42]}  Na6+ {[%clk 0:01:13]} 44. Ka5 {[%clk 0:01:42]}  Rxd6 {[%clk 0:01:13]} 45. Nxd6 {[%clk 0:01:43]}  Rc6 {[%clk 0:01:13]} 46. Nxf7 {[%clk 0:01:42]}  Nc5 {[%clk 0:01:12]} 47. Ne5 {[%clk 0:01:38]}  Rc8 {[%clk 0:01:11]} 48. b4 {[%clk 0:01:32]}  Nb7+ {[%clk 0:01:09]} 49. Kb6 {[%clk 0:01:32]}  Nd6 {[%clk 0:01:10]} 50. c5 {[%clk 0:01:30]}  Rb8+ {[%clk 0:01:10]} 51. Kc7 {[%clk 0:01:30]}  Nb5+ {[%clk 0:01:10]} 52. Kxb8 {[%clk 0:01:30]} 1-0


[Site "https://www.chess.com"]

[Event "Titled Tuesday Blitz November 15 Late 2022"]
[White "Haszon, David"]
[Black "Hansen, Sune Berg"]
[WhiteFideId "733610"]
[BlackFideId "1400266"]
[WhiteElo "2211"]
[BlackElo "2731"]
[Result "0-1"]
[Round "01"]
[TimeControl "180+1"]
[Date "2022.11.16"]
[WhiteClock "0:00:10"]
[BlackClock "0:00:18"]

1. e4 {[%clk 0:02:59]}  c5 {[%clk 0:02:59]} 2. c3 {[%clk 0:02:59]}  e6 {[%clk 0:03:00]} 3. d4 {[%clk 0:02:59]}  d5 {[%clk 0:03:00]} 4. exd5 {[%clk 0:02:58]}  exd5 {[%clk 0:03:00]} 5. Nf3 {[%clk 0:02:57]}  Nc6 {[%clk 0:03:00]} 6. Bb5 {[%clk 0:02:53]}  Bd6 {[%clk 0:03:00]} 7. O-O {[%clk 0:02:49]}  Ne7 {[%clk 0:02:59]} 8. Be3 {[%clk 0:02:42]}  c4 {[%clk 0:02:59]} 9. Ne5 {[%clk 0:02:29]}  O-O {[%clk 0:02:56]} 10. Nxc6 {[%clk 0:02:22]}  bxc6 {[%clk 0:02:54]} 11. Ba4 {[%clk 0:02:22]}  Nf5 {[%clk 0:02:46]} 12. Bxc6 {[%clk 0:02:03]}  Bxh2+ {[%clk 0:02:44]} 13. Kxh2 {[%clk 0:02:04]}  Qd6+ {[%clk 0:02:40]} 14. Kg1 {[%clk 0:02:03]}  Qxc6 {[%clk 0:02:38]} 15. Bf4 {[%clk 0:01:51]}  f6 {[%clk 0:02:37]} 16. Na3 {[%clk 0:01:48]}  g5 {[%clk 0:02:31]} 17. Bc1 {[%clk 0:01:38]}  Nh4 {[%clk 0:02:18]} 18. Nc2 {[%clk 0:01:32]}  Bd7 {[%clk 0:02:07]} 19. f4 {[%clk 0:01:05]}  g4 {[%clk 0:02:04]} 20. Qe1 {[%clk 0:00:45]}  Nf5 {[%clk 0:02:01]} 21. Qf2 {[%clk 0:00:28]}  Rae8 {[%clk 0:01:56]} 22. Re1 {[%clk 0:00:20]}  Rxe1+ {[%clk 0:01:53]} 23. Qxe1 {[%clk 0:00:21]}  Re8 {[%clk 0:01:52]} 24. Qf2 {[%clk 0:00:21]}  Nd6 {[%clk 0:01:43]} 25. Qh4 {[%clk 0:00:20]}  Ne4 {[%clk 0:01:33]} 26. Nb4 {[%clk 0:00:20]}  Qe6 {[%clk 0:01:31]} 27. Be3 {[%clk 0:00:21]}  Qf5 {[%clk 0:01:29]} 28. Re1 {[%clk 0:00:19]}  h5 {[%clk 0:01:18]} 29. g3 {[%clk 0:00:18]}  Kg7 {[%clk 0:01:16]} 30. Bf2 {[%clk 0:00:17]}  Kg6 {[%clk 0:01:13]} 31. Kg2 {[%clk 0:00:17]}  Nd6 {[%clk 0:01:06]} 32. Rxe8 {[%clk 0:00:16]}  Bxe8 {[%clk 0:01:07]} 33. Qh1 {[%clk 0:00:16]}  a5 {[%clk 0:01:06]} 34. Na6 {[%clk 0:00:15]}  Qc2 {[%clk 0:01:04]} 35. Qe1 {[%clk 0:00:14]}  Ne4 {[%clk 0:01:03]} 36. Nc5 {[%clk 0:00:13]}  Bc6 {[%clk 0:00:56]} 37. Nxe4 {[%clk 0:00:12]}  dxe4 {[%clk 0:00:56]} 38. Qe3 {[%clk 0:00:13]}  Bd5 {[%clk 0:00:51]} 39. f5+ {[%clk 0:00:13]}  Kxf5 {[%clk 0:00:51]} 40. Qf4+ {[%clk 0:00:14]}  Ke6 {[%clk 0:00:50]} 41. Kg1 {[%clk 0:00:14]}  Qb1+ {[%clk 0:00:47]} 42. Kh2 {[%clk 0:00:13]}  Qxb2 {[%clk 0:00:39]} 43. a4 {[%clk 0:00:13]}  Qe2 {[%clk 0:00:28]} 44. Qe3 {[%clk 0:00:14]}  Qf1 {[%clk 0:00:26]} 45. Bg1 {[%clk 0:00:12]}  Qd3 {[%clk 0:00:18]} 46. Qh6 {[%clk 0:00:12]}  Qe2+ {[%clk 0:00:18]} 47. Kh1 {[%clk 0:00:10]}  e3# {[%clk 0:00:18]} 0-1


[Site "https://www.chess.com"]

[Event "Titled Tuesday Blitz November 15 Late 2022"]
[White "Horcajuelo Rocamora, Martin"]
[Black "Zwirs, Nico"]
[WhiteFideId "24573027"]
[BlackFideId "1036432"]
[WhiteElo "2094"]
[BlackElo "2381"]
[Result "0-1"]
[Round "01"]
[TimeControl "180+1"]
[Date "2022.11.16"]
[WhiteClock "0:00:50"]
[BlackClock "0:00:18"]

1. e4 {[%clk 0:02:56]}  c5 {[%clk 0:02:59]} 2. Nf3 {[%clk 0:02:55]}  e6 {[%clk 0:02:58]} 3. d4 {[%clk 0:02:55]}  cxd4 {[%clk 0:02:59]} 4. Nxd4 {[%clk 0:02:56]}  a6 {[%clk 0:03:00]} 5. Bd3 {[%clk 0:02:56]}  Bc5 {[%clk 0:02:57]} 6. Nb3 {[%clk 0:02:55]}  Ba7 {[%clk 0:02:56]} 7. O-O {[%clk 0:02:55]}  Ne7 {[%clk 0:02:54]} 8. c4 {[%clk 0:02:54]}  d6 {[%clk 0:02:53]} 9. Nc3 {[%clk 0:02:54]}  Nbc6 {[%clk 0:02:52]} 10. Bf4 {[%clk 0:02:53]}  e5 {[%clk 0:02:52]} 11. Bg5 {[%clk 0:02:48]}  h6 {[%clk 0:02:52]} 12. Bh4 {[%clk 0:02:48]}  g5 {[%clk 0:02:45]} 13. Bg3 {[%clk 0:02:48]}  Ng6 {[%clk 0:02:45]} 14. Nd5 {[%clk 0:02:41]}  h5 {[%clk 0:02:39]} 15. h3 {[%clk 0:02:39]}  Nf4 {[%clk 0:02:32]} 16. Bxf4 {[%clk 0:02:39]}  gxf4 {[%clk 0:02:33]} 17. Be2 {[%clk 0:02:38]}  Be6 {[%clk 0:02:27]} 18. Kh2 {[%clk 0:02:35]}  Rc8 {[%clk 0:02:16]} 19. Rc1 {[%clk 0:02:33]}  Qg5 {[%clk 0:02:13]} 20. c5 {[%clk 0:02:25]}  dxc5 {[%clk 0:01:57]} 21. Nxc5 {[%clk 0:02:26]}  Bxc5 {[%clk 0:01:55]} 22. Rxc5 {[%clk 0:02:25]}  Rd8 {[%clk 0:01:19]} 23. Qa4 {[%clk 0:02:16]}  O-O {[%clk 0:01:15]} 24. g3 {[%clk 0:02:05]}  fxg3+ {[%clk 0:01:11]} 25. fxg3 {[%clk 0:02:06]}  Nd4 {[%clk 0:00:45]} 26. Nf6+ {[%clk 0:02:03]}  Kh8 {[%clk 0:00:44]} 27. Bxh5 {[%clk 0:02:01]}  Qd2+ {[%clk 0:00:40]} 28. Kh1 {[%clk 0:01:58]}  Bxh3 {[%clk 0:00:39]} 29. Rg1 {[%clk 0:01:55]}  Rd6 {[%clk 0:00:30]} 30. Rxe5 {[%clk 0:01:32]}  Rxf6 {[%clk 0:00:30]} 31. Rd5 {[%clk 0:01:25]}  Rf1 {[%clk 0:00:26]} 32. Qxd4+ {[%clk 0:01:21]}  Qxd4 {[%clk 0:00:25]} 33. Rxd4 {[%clk 0:01:22]}  Rf2 {[%clk 0:00:24]} 34. g4 {[%clk 0:01:09]}  Rc8 {[%clk 0:00:23]} 35. Rg3 {[%clk 0:00:53]}  Rc1+ {[%clk 0:00:20]} 36. Rg1 {[%clk 0:00:53]}  Rcc2 {[%clk 0:00:20]} 37. Rd8+ {[%clk 0:00:53]}  Kg7 {[%clk 0:00:18]} 38. Rgd1 {[%clk 0:00:51]}  Rh2+ {[%clk 0:00:18]} 39. Kg1 {[%clk 0:00:50]}  Rcg2+ {[%clk 0:00:18]} 0-1


[Site "https://www.chess.com"]